bitfinex-derivatives/quotes_ETHF0:USTF0_20250403
["timestamp","ask_amount","ask_price","bid_price","bid_amount"]
[1743654599323,5.0236,1825.9,1825.6,4.08426]
[1743654599522,1.4756,1825.8,1825.6,4.08426]
[1743654600024,0.754,1825.7,1825.6,4.08426]
[1743654600221,1.4869,1825.7,1825.6,4.08426]
[1743654604724,1.4869,1825.7,1825.6,3.2078]
[1743654605036,2.36334,1825.7,1825.6,3.2078]
[1743654605634,1.4869,1825.7,1825.6,3.2078]
[1743654606136,3.75414,1825.7,1825.5,2.30142]
[1743654606534,1.406,1825.6,1825.5,2.30142]
[1743654606736,1.406,1825.6,1825.5,1.4249]
[1743654607035,0.87654,1825.5,1825.4,3.21599919]
[1743654607535,2.28254,1825.5,1825.4,3.21599919]
[1743654608236,1.406,1825.5,1825.4,3.21599919]
[1743654611039,1.406,1825.5,1825.4,4.09258919]
[1743654611438,3.548,1825.6,1825.5,0.87654]
[1743654611739,1.4869,1825.7,1825.5,3.08724]
[1743654611938,2.9661,1825.7,1825.5,3.08724]
[1743654612141,2.9661,1825.7,1825.6,1.4537]
[1743654614638,3.84254,1825.7,1825.6,1.4537]
[1743654614938,2.9661,1825.7,1825.6,4.6615]
[1743654615138,3.84254,1825.7,1825.6,4.6615]
[1743654615332,2.9661,1825.7,1825.6,4.6615]
[1743654615532,3.84254,1825.7,1825.6,3.2078]
[1743654617138,2.9661,1825.7,1825.6,3.2078]
[1743654617328,3.84254,1825.7,1825.6,3.2078]
[1743654618438,2.9661,1825.7,1825.4,3.21599919]
[1743654618636,2.3737,1825.6,1825.4,3.21599919]
[1743654618946,1.4972,1825.5,1825.4,3.21599919]
[1743654619940,2.37374,1825.5,1825.4,3.21599919]
[1743654620731,5.92174,1825.5,1825.4,3.21599919]
[1743654621135,8.42174,1825.5,1825.4,3.21599919]
[1743654621340,10.753,1825.5,1824.9,3.2078]
[1743654621643,10.753,1825.5,1824.9,4.08462]
[1743654621644,0.87666,1825.3,1824.9,4.08462]
[1743654621844,4.932,1825.2,1825.0,0.87677]
[1743654622033,0.7318,1825.4,1825.0,4.6466]
[1743654622236,6.371,1825.4,1825.2,3.2078]
[1743654622434,6.371,1825.4,1825.2,4.08447]
[1743654622636,6.371,1825.4,1825.3,1.4388]
[1743654622839,4.987,1825.4,1825.3,1.4388]
[1743654623943,5.86359,1825.4,1825.3,1.4388]
[1743654624338,4.987,1825.4,1825.3,1.4388]
[1743654624739,4.987,1825.4,1825.3,2.31543]
[1743654624935,4.987,1825.4,1825.3,1.4388]
[1743654625445,4.987,1825.4,1825.3,2.31543]
[1743654625841,4.987,1825.4,1825.3,1.4388]
[1743654628134,66.7108,1825.9,1825.3,1.4388]
[1743654628135,0.87653,1825.6,1825.3,1.4388]
[1743654628447,4.42454,1825.5,1825.3,1.4388]
[1743654628649,1.4097,1825.4,1825.3,1.4388]
[1743654629449,2.28629,1825.4,1825.3,1.4388]
[1743654630248,1.4097,1825.4,1825.3,1.4388]
[1743654630839,2.28631,1825.4,1825.2,3.2078]
[1743654631244,2.28631,1825.4,1825.2,4.6312]
[1743654631648,1.4097,1825.4,1825.2,5.50788]
[1743654631837,1.4097,1825.4,1825.3,1.4234]
[1743654632037,0.6936,1825.4,1825.3,1.4234]
[1743654632247,1.59051,1825.6,1825.3,3.03573]
[1743654632550,3.548,1825.4,1825.3,1.4568]
[1743654633048,4.42459,1825.4,1825.3,1.4568]
[1743654633244,0.87668,1825.2,1825.0,4.08455]
[1743654633445,4.2451,1825.4,1825.0,4.08455]
[1743654633446,1.60076,1825.3,1825.0,4.08455]
[1743654633648,1.60895919,1825.3,1825.0,4.08455]
[1743654633947,0.87673,1825.1,1825.0,3.2078]
[1743654634153,4.42473,1825.1,1825.0,3.2078]
[1743654636548,0.87679,1825.0,1824.8,4.82274]
[1743654636852,1.62259,1825.0,1824.8,4.82274]
[1743654637252,1.62259,1825.0,1824.8,3.9459]
[1743654637450,0.87683,1824.9,1824.8,3.2078]
[1743654637659,1.56893,1824.9,1824.8,3.2078]
[1743654638144,2.94543,1824.9,1824.8,3.2078]
[1743654639148,2.0686,1824.9,1824.5,3.9346]
[1743654639353,0.87696,1824.7,1824.5,4.81161]
[1743654639552,0.87696,1824.7,1824.5,3.9346]
[1743654639945,3.548,1824.8,1824.5,3.9346]
[1743654640147,3.548,1824.9,1824.8,0.87687]
[1743654640557,3.548,1824.9,1824.8,2.38317]
[1743654641657,3.548,1824.9,1824.8,1.5063]
[1743654641859,4.42483,1824.9,1824.8,1.5063]
[1743654642262,3.548,1824.9,1824.8,1.5063]
[1743654642654,3.548,1824.9,1824.8,2.38317]
[1743654644157,3.2078,1825.6,1824.8,1.5063]
[1743654644363,3.55619919,1825.3,1825.2,3.2078]
[1743654644562,3.55619919,1825.3,1825.2,3.9267]
[1743654645063,3.55619919,1825.3,1825.2,4.80338]
[1743654645359,0.00819919,1825.3,1825.2,4.80338]
[1743654650560,0.00819919,1825.3,1825.2,6.91888]
[1743654650766,0.7557,1825.7,1825.5,0.87651]
[1743654650961,3.548,1825.6,1825.5,4.08431]
[1743654652062,0.76389919,1825.7,1825.6,0.87649]
[1743654652369,0.00819919,1825.7,1825.6,0.87649]
[1743654652569,0.00819919,1825.7,1825.6,2.32459]
[1743654652865,1.40229919,1825.7,1825.6,2.32459]
[1743654653666,1.40229919,1825.7,1825.5,4.08431]
[1743654654060,0.00819919,1825.7,1825.6,0.87649]
[1743654654560,0.00819919,1825.7,1825.6,1.61469]
[1743654657176,0.00819919,1825.7,1825.6,2.34639]
[1743654660279,0.00819919,1825.7,1825.6,0.87649]
[1743654661181,5.0082,1826.1,1826.0,0.8763]
[1743654661372,1.4612,1826.1,1826.0,0.8763]
[1743654662072,2.219,1826.1,1826.0,0.8763]
[1743654663579,2.9126,1826.1,1826.0,0.8763]
[1743654664465,1.4514,1826.1,1826.0,0.8763]
[1743654664671,1.4514,1826.1,1826.0,1.6363]
[1743654666673,1.4514,1826.1,1826.0,0.8763]
[1743654666974,3.81416,1826.1,1825.9,4.08411]
[1743654667381,1.4571,1826.0,1825.9,4.08411]
[1743654674981,1.4571,1826.0,1825.9,3.2078]
[1743654675985,1.4571,1826.0,1825.9,4.08415]
[1743654677183,1.4571,1826.0,1825.9,3.2078]
[1743654677681,1.4571,1826.0,1825.9,4.08415]
[1743654680383,1.4571,1826.0,1825.9,3.2078]
[1743654680588,1.4571,1826.0,1825.9,4.08415]
[1743654681290,2.32765,1826.1,1826.0,0.8763]
[1743654681291,1.4514,1826.1,1826.0,0.8763]
[1743654681598,1.4514,1826.1,1826.0,2.3539]
[1743654682394,0.00819919,1826.2,1826.1,0.87625]
[1743654682590,0.00819919,1826.2,1826.1,4.08405]
[1743654688100,5.82884,1826.8,1826.6,0.87601]
[1743654688290,1.4079,1826.7,1826.6,0.87601]
[1743654688500,1.4091,1826.9,1826.8,0.87591]
[1743654689103,0.7137,1826.9,1826.8,2.37181]
[1743654692992,1.39859919,1827.0,1826.9,0.87587]
[1743654693193,1.39859919,1827.0,1826.9,5.59927]
[1743654694002,0.00819919,1827.0,1826.9,5.59927]
[1743654694696,3.544,1827.9,1827.7,0.87547]
[1743654694899,0.87555,1827.6,1827.4,3.2078]
[1743654695100,1.406,1827.5,1827.4,3.2078]
[1743654695494,1.406,1827.5,1827.4,4.08343]
[1743654695697,0.00819919,1827.6,1827.5,0.87558]
[1743654695891,0.00819919,1827.6,1827.5,2.34878]
[1743654696294,0.00819919,1827.6,1827.4,4.0834]
[1743654696492,1.41419919,1827.6,1827.4,4.0834]
[1743654698391,1.41419919,1827.6,1827.5,0.87558]
[1743654699505,2.28974919,1827.6,1827.4,3.2078]
[1743654699898,1.4167,1827.5,1827.4,3.2078]
[1743654702410,2.29228,1827.5,1827.4,3.2078]
[1743654705201,1.4167,1827.5,1827.4,3.2078]
[1743654705407,0.00819919,1827.6,1827.5,0.87558]
[1743654708210,0.00819919,1827.6,1827.5,2.30148]
[1743654708412,0.87531,1828.1,1827.8,0.87542]
[1743654708610,3.78821,1828.1,1827.9,3.2078]
[1743654708909,7.33021,1828.1,1827.9,4.6337]
[1743654709110,2.31454,1828.0,1827.9,4.6337]
[1743654710710,1.4392,1828.0,1827.9,3.2078]
[1743654710905,1.48189919,1828.1,1827.9,3.2078]
[1743654710906,1.48189919,1828.1,1828.0,0.87534]
[1743654711213,1.48189919,1828.1,1828.0,2.25784]
[1743654711511,0.76249919,1828.1,1828.0,2.25784]
[1743654711708,0.76249919,1828.1,1828.0,2.95864]
[1743654713117,0.76249919,1828.1,1828.0,2.25784]
[1743654714805,2.16539919,1828.1,1828.0,2.25784]
[1743654715005,2.16539919,1828.1,1828.0,1.3825]
[1743654715308,2.16539919,1828.1,1828.0,2.25784]
[1743654717009,2.16539919,1828.1,1827.9,4.08315]
[1743654717313,2.2329,1828.0,1827.9,4.08315]
[1743654718006,2.2329,1828.0,1827.9,3.2078]
[1743654718513,0.87543,1827.8,1827.7,3.2078]
[1743654718811,4.41643,1827.8,1827.7,3.2078]
[1743654719507,6.041,1827.8,1827.4,3.2078]
[1743654719708,0.87558,1827.5,1827.4,3.2078]
[1743654719907,4.41658,1827.5,1827.4,3.2078]
[1743654720411,3.541,1827.5,1827.4,3.2078]
[1743654720610,5.86418,1827.5,1827.4,3.2078]
[1743654720813,4.9886,1827.5,1827.4,3.2078]
[1743654721115,4.9886,1827.5,1827.3,4.09164919]
[1743654721808,1.4476,1827.4,1827.3,4.09164919]
[1743654723414,1.4476,1827.4,1827.3,3.21599919]
[1743654723415,2.32323,1827.4,1827.3,3.21599919]
[1743654724618,3.541,1827.5,1827.3,3.21599919]
[1743654724803,3.541,1827.5,1827.4,2.37393]
[1743654725001,3.541,1827.5,1827.4,1.4983]
[1743654725605,5.6787,1827.6,1827.4,2.37391]
[1743654725816,2.1377,1827.6,1827.5,4.08338]
[1743654726014,5.6787,1827.6,1827.5,4.6652]
[1743654726417,2.1377,1827.6,1827.5,4.6652]
[1743654726808,3.01323,1827.6,1827.5,4.6652]
[1743654727015,2.1377,1827.6,1827.5,5.54078]
[1743654727312,0.6882,1827.6,1827.5,5.54078]
[1743654728616,0.6882,1827.6,1827.5,4.6652]
[1743654731417,1.56373,1827.6,1827.5,4.6652]
[1743654731613,2.93913,1827.6,1827.5,4.6652]
[1743654731918,2.93913,1827.6,1827.5,3.2078]
[1743654732620,0.87563,1827.4,1827.3,3.21599919]
[1743654732814,4.41663,1827.4,1827.3,0.00819919]
[1743654733412,5.79203,1827.4,1827.3,0.00819919]
[1743654734021,8.29203,1827.4,1827.3,0.00819919]
[1743654735528,8.29203,1827.4,1826.8,1.56621]
[1743654735529,0.87587,1826.9,1826.8,3.2078]
[1743654736225,3.81797,1826.9,1826.8,3.2078]
[1743654750633,0.87591,1826.8,1826.7,0.00819919]
[1743654750837,2.36541,1826.8,1826.7,0.00819919]
[1743654751940,1.4895,1826.8,1826.7,0.00819919]
[1743654752238,1.4427,1826.9,1826.8,0.87591]
[1743654752438,3.54919919,1827.0,1826.8,0.87591]
[1743654752439,0.00819919,1827.0,1826.9,0.87587]
[1743654752638,0.00819919,1827.0,1826.9,3.79457]
[1743654755334,0.00819919,1827.0,1826.9,2.9187]
[1743654756240,0.00819919,1827.0,1826.9,3.79457]
[1743654757937,0.00819919,1827.0,1826.9,2.9187]
[1743654758748,0.00819919,1827.0,1826.9,3.79457]
[1743654762345,0.88401919,1827.0,1826.9,1.4671]
[1743654762748,0.00819919,1827.0,1826.9,1.4671]
[1743654763745,0.88401919,1827.0,1826.9,1.4671]
[1743654764645,3.09151919,1827.0,1826.9,1.4671]
[1743654764950,0.87587,1826.9,1826.8,3.2078]
[1743654765246,1.4555,1826.9,1826.8,4.6839]
[1743654765447,2.33137,1826.9,1826.8,4.6839]
[1743654765647,2.33137,1826.9,1826.8,3.2078]
[1743654766752,0.87591,1826.8,1826.7,0.00819919]
[1743654766943,3.06171,1826.8,1826.7,0.00819919]
[1743654768445,2.1858,1826.8,1826.7,0.00819919]
[1743654769051,2.1858,1826.8,1826.7,1.47509919]
[1743654769651,3.542,1826.8,1826.7,1.47509919]
[1743654770647,0.7268,1826.9,1826.7,2.35105919]
[1743654770956,5.14467,1826.9,1826.8,3.2078]
[1743654771146,5.14467,1826.9,1826.8,4.6484]
[1743654771659,6.55357,1826.9,1826.8,4.6484]
[1743654771850,6.55357,1826.9,1826.8,3.2078]
[1743654778753,6.55357,1826.9,1826.7,0.00819919]
[1743654778754,0.87591,1826.8,1826.7,0.00819919]
[1743654778955,2.25311,1826.8,1826.7,0.00819919]
[1743654783764,2.25311,1826.8,1826.7,1.48809919]
[1743654783962,0.7268,1826.9,1826.7,1.48809919]
[1743654784173,2.25629919,1827.0,1826.8,3.2078]
[1743654784363,2.25629919,1827.0,1826.9,1.4799]
[1743654784565,5.79829919,1827.0,1826.9,1.4799]
[1743654785163,4.30219919,1827.0,1826.9,1.4799]
[1743654786470,0.00819919,1827.0,1826.9,2.35577]
[1743654787376,0.00819919,1827.0,1826.9,4.85577]
[1743654787679,3.542,1827.3,1827.2,0.87572]
[1743654787880,3.542,1827.3,1827.2,3.2078]
[1743654788371,6.58057,1827.3,1827.2,3.2078]
[1743654789270,5.7049,1827.3,1827.2,3.2078]
[1743654790781,5.7049,1827.3,1827.2,4.624]
[1743654791277,3.542,1827.3,1827.2,5.49972]
[1743654792281,0.00819919,1827.4,1827.3,0.87567]
[1743654792478,3.54919919,1827.4,1827.3,3.07517]
[1743654792781,0.00819919,1827.4,1827.3,3.07517]
[1743654799589,3.2078,1828.1,1827.3,11.39917]
[1743654799889,6.4111,1828.3,1827.9,3.2078]
[1743654800078,6.4111,1828.3,1828.0,2.31322]
[1743654800079,1.3888,1828.2,1828.0,2.31322]
[1743654800279,0.87534,1828.0,1827.9,3.2078]
[1743654800690,4.41634,1828.0,1827.9,3.2078]
[1743654801286,5.7452,1828.0,1827.9,3.2078]
[1743654802784,6.62054,1828.0,1827.9,3.2078]
[1743654802985,5.7452,1828.0,1827.9,3.2078]
[1743654803282,5.7452,1828.0,1827.9,4.08319]
[1743654803283,3.54,1828.0,1827.9,4.08319]
[1743654803484,3.54,1828.0,1827.9,6.30979]
[1743654803682,0.0054661,1828.1,1828.0,0.87534]
[1743654803882,0.0054661,1828.1,1828.0,2.37764]
[1743654804989,0.0054661,1828.1,1828.0,3.09204]
[1743654807588,0.704,1828.7,1828.6,0.87505]
[1743654807798,6.403,1828.7,1828.5,0.87507]
[1743654808394,6.403,1828.7,1828.6,3.2078]
[1743654810289,6.403,1828.7,1828.6,4.08285]
[1743654810494,6.403,1828.7,1828.6,5.51685]
[1743654810791,0.87492,1828.9,1828.6,5.51685]
[1743654810996,3.539,1828.8,1828.6,5.51685]
[1743654811200,2.1115,1828.8,1828.7,0.875]
[1743654811408,5.6505,1828.8,1828.7,2.309]
[1743654811700,1.57784,1829.1,1828.8,0.87494]
[1743654811897,5.6505,1829.0,1828.8,4.08274]
[1743654812196,1.3737,1828.9,1828.8,4.09093919]
[1743654812397,0.7378,1829.0,1828.8,3.21599919]
[1743654812593,0.7378,1829.0,1828.9,2.30891]
[1743654814189,5.6157,1829.1,1829.0,0.87486]
[1743654814385,5.6157,1829.1,1829.0,5.45646]
[1743654814592,2.0767,1829.1,1829.0,5.45646]
[1743654815786,0.703,1829.1,1829.0,5.45646]
[1743654816195,0.7183,1829.2,1829.0,5.45646]
[1743654816196,0.7183,1829.2,1829.1,0.87481]
[1743654816500,0.7183,1829.2,1829.1,2.24541]
[1743654816700,2.2121,1829.2,1829.1,2.24541]
[1743654818497,0.7183,1829.2,1829.1,2.24541]
[1743654819801,5.0318,1829.3,1829.2,0.87476]
[1743654820104,5.0318,1829.3,1829.2,5.56696]
[1743654821202,5.0318,1829.3,1829.2,5.46018376]
[1743654821499,1.4938,1829.3,1829.2,5.46018376]
[1743654823799,1.4938,1829.3,1829.2,3.2078]
[1743654824000,2.36852,1829.3,1829.2,3.2078]
[1743654825703,1.4938,1829.3,1829.2,3.2078]
[1743654826305,1.4938,1829.3,1829.2,4.08256]
[1743654826607,1.4537,1829.4,1829.3,0.87472]
[1743654826806,1.4537,1829.4,1829.3,2.27582]
[1743654827003,2.9439,1829.4,1829.3,2.27582]
[1743654827401,1.4537,1829.4,1829.3,2.27582]
[1743654827606,3.537,1829.6,1829.5,0.87459]
[1743654827806,6.4668,1829.7,1829.5,4.08239]
[1743654828205,1.4902,1829.6,1829.5,4.08239]
[1743654831417,2.36477,1829.6,1829.5,3.2078]
[1743654831914,1.4902,1829.6,1829.5,3.2078]
[1743654832101,2.36477,1829.6,1829.5,3.2078]
[1743654833110,1.4902,1829.6,1829.5,3.2078]
[1743654833798,2.36477,1829.6,1829.5,3.2078]
[1743654836716,5.90077,1829.6,1829.5,3.2078]
[1743654837611,5.0262,1829.6,1829.5,3.2078]
[1743654838419,5.0262,1829.6,1829.5,4.5846]
[1743654839213,5.0262,1829.6,1829.5,5.45922]
[1743654840716,5.0262,1829.6,1829.5,4.5846]
[1743654841619,5.90077,1829.6,1829.5,4.5846]
[1743654843125,5.0262,1829.6,1829.5,4.5846]
[1743654843618,1.4902,1829.6,1829.5,4.5846]
[1743654844418,5.964,1830.3,1829.5,4.5846]
[1743654844724,2.16630818,1830.0,1829.8,0.87446]
[1743654844925,2.36283,1829.9,1829.8,3.2078]
[1743654847419,1.4884,1829.9,1829.8,3.2078]
[1743654849415,1.4884,1829.9,1829.8,4.6034]
[1743654850412,1.4884,1829.9,1829.8,5.47788]
[1743654850618,1.4884,1829.9,1829.8,4.6034]
[1743654851223,1.4884,1829.9,1829.8,5.47788]
[1743654853024,1.4884,1829.9,1829.8,4.6034]
[1743654855826,1.4884,1829.9,1829.8,5.47788]
[1743654856824,0.67790818,1830.0,1829.8,6.23698]
[1743654857129,0.67790818,1830.0,1829.9,2.34623]
[1743654857326,2.1864,1830.1,1830.0,0.87438]
[1743654857528,2.1864,1830.1,1830.0,5.55398]
[1743654857730,0.7259,1830.4,1830.0,4.6796]
[1743654857940,2.868,1830.4,1830.2,4.08206]
[1743654858132,2.868,1830.4,1830.3,1.4718]
[1743654858725,3.535,1830.6,1830.3,2.34604]
[1743654858726,0.87413,1830.6,1830.3,2.34604]
[1743654858925,4.40913,1830.6,1830.3,2.34604]
[1743654859132,1.4029,1830.5,1830.4,1.3846]
[1743654860033,2.1531,1830.5,1830.4,1.3846]
[1743654860234,2.8536,1830.5,1830.4,1.3846]
[1743654860729,2.8536,1830.5,1830.4,4.5924]
[1743654862835,0.7502,1830.5,1830.4,4.5924]
[1743654864439,2.1685,1830.5,1830.4,4.5924]
[1743654864828,2.1685,1830.5,1830.4,5.46659]
[1743654865734,0.7003,1830.7,1830.5,0.87412]
[1743654865933,0.7003,1830.7,1830.5,2.26722]
[1743654866136,0.7003,1830.7,1830.6,3.2078]
[1743654866332,2.1525,1830.7,1830.6,3.2078]
[1743654867241,2.1525,1830.7,1830.6,4.0819]
[1743654867441,2.1525,1830.7,1830.6,3.2078]
[1743654867642,2.1525,1830.7,1830.6,4.0819]
[1743654867940,2.1525,1830.7,1830.6,3.2078]
[1743654868840,3.2078,1831.5,1830.6,3.2078]
[1743654869050,2.1677,1831.2,1831.0,0.8739]
[1743654869537,2.1677,1831.2,1831.0,2.2998]
[1743654870238,4.2354,1831.4,1830.9,3.21599919]
[1743654870239,0.7014,1831.4,1831.3,0.87376]
[1743654870435,0.7014,1831.4,1831.3,3.2078]
[1743654870844,2.1221,1831.4,1831.3,3.2078]
[1743654871141,2.1221,1831.4,1831.3,5.57536]
[1743654871142,0.7014,1831.4,1831.3,5.57536]
[1743654871344,0.747,1831.5,1831.3,4.7016]
[1743654871536,3.85178,1831.5,1831.3,4.7016]
[1743654871731,2.9781,1831.5,1831.3,5.57534]
[1743654871936,2.9781,1831.5,1831.4,1.4938]
[1743654872631,0.87354,1831.8,1831.4,1.4938]
[1743654872833,2.2311,1831.8,1831.7,4.08137]
[1743654873036,0.7368,1832.0,1831.7,4.08137]
[1743654873238,0.7542,1832.2,1832.1,0.87338]
[1743654873543,0.7542,1832.2,1832.1,3.2078]
[1743654873741,0.7542,1832.2,1832.0,1.50199919]
[1743654873945,1.4769,1832.1,1832.0,1.50199919]
[1743654874534,0.7368,1832.3,1832.0,1.50199919]
[1743654874738,1.61009,1832.3,1832.1,3.2078]
[1743654875034,1.3909,1832.2,1832.1,3.2078]
[1743654875437,0.7368,1832.3,1832.1,4.08118]
[1743654875641,3.2078,1832.4,1832.3,0.87328]
[1743654875843,0.87314,1832.6,1832.3,3.2078]
[1743654876045,1.3909,1832.5,1832.4,1.5006]
[1743654878144,0.87314,1832.6,1832.4,1.5006]
[1743654878446,3.532,1832.7,1832.3,3.2078]
[1743654878647,1.4075,1832.6,1832.3,3.2078]
[1743654878846,0.87324,1832.4,1832.1,5.57208]
[1743654879040,1.4075,1832.3,1832.1,5.57208]
[1743654879238,1.4075,1832.3,1832.2,0.87333]
[1743654879444,1.4075,1832.3,1832.2,2.36423]
[1743654879842,1.62508,1832.6,1832.2,2.36423]
[1743654880038,1.4075,1832.5,1832.3,4.08108]
[1743654880448,1.4075,1832.5,1832.3,3.2078]
[1743654881148,1.4075,1832.5,1832.4,1.4244]
[1743654881348,2.28069,1832.5,1832.3,3.2078]
[1743654881649,0.87324,1832.4,1832.1,5.50555]
[1743654881948,1.4121,1832.3,1832.1,4.6322]
[1743654882341,1.4121,1832.3,1832.1,5.50558]
[1743654883044,2.1504,1832.3,1832.1,5.50558]
[1743654883245,2.1504,1832.3,1832.2,1.4689]
[1743654884443,2.1504,1832.3,1832.1,3.2078]
[1743654884646,0.87338,1832.1,1832.0,0.00819919]
[1743654885243,2.25858,1832.1,1832.0,0.00819919]
[1743654885441,1.3852,1832.1,1832.0,0.00819919]
[1743654885641,1.3852,1832.1,1832.0,1.47709919]
[1743654886247,2.25858,1832.1,1832.0,0.00819919]
[1743654887352,0.6974,1832.2,1832.0,0.00819919]
[1743654887353,3.2078,1832.6,1832.0,2.50819919]
[1743654887546,2.24396,1832.6,1832.3,0.87328]
[1743654887959,1.3708,1832.6,1832.4,2.29401]
[1743654888154,1.3708,1832.6,1832.5,1.4208]
[1743654891252,3.542,1832.7,1832.5,1.4208]
[1743654891751,4.9864,1832.7,1832.5,1.4208]
[1743654891950,4.9864,1832.7,1832.5,2.29395]
[1743654894850,4.9864,1832.7,1832.5,1.4208]
[1743654895049,4.9864,1832.7,1832.5,2.29398]
[1743654895455,5.8595,1832.7,1832.5,1.4208]
[1743654895656,4.9864,1832.7,1832.5,1.4208]
[1743654895854,5.8595,1832.7,1832.5,1.4208]
[1743654896057,4.9864,1832.7,1832.5,2.29397]
[1743654896252,1.4299,1832.9,1832.5,2.29397]
[1743654896253,2.30293,1832.9,1832.6,4.08094]
[1743654896657,3.82053,1832.9,1832.7,1.4078]
[1743654896959,1.5176,1832.8,1832.7,1.4078]
[1743654897162,2.39065,1832.8,1832.7,1.4078]
[1743654897456,0.87309,1832.7,1832.6,3.2078]
[1743654897663,2.39069,1832.7,1832.6,3.2078]
[1743654901064,0.87314,1832.6,1832.4,3.2078]
[1743654901268,2.931,1832.5,1832.2,3.2078]
[1743654901458,1.3768,1832.4,1832.3,0.87328]
[1743654901663,1.3768,1832.4,1832.3,1.3734]
[1743654902160,2.25004,1832.4,1832.2,3.2078]
[1743654902659,2.25008,1832.3,1832.2,3.2078]
[1743654903068,5.78908,1832.3,1832.2,3.2078]
[1743654903864,5.78908,1832.3,1832.0,0.00819919]
[1743654903865,0.87338,1832.1,1832.0,0.00819919]
[1743654904565,0.7122,1832.1,1832.0,0.00819919]
[1743654904763,1.3768,1832.2,1832.0,4.08942919]
[1743654904968,1.3768,1832.2,1832.1,1.4621]
[1743654905467,1.3768,1832.2,1832.0,3.21599919]
[1743654905767,2.25016,1832.2,1832.0,3.21599919]
[1743654906158,2.32368,1832.1,1832.0,3.21599919]
[1743654906558,2.32368,1832.1,1832.0,0.00819919]
[1743654908666,0.87356,1831.8,1831.6,4.6377]
[1743654908857,0.87357,1831.7,1831.6,4.6377]
[1743654909064,2.38077,1831.7,1831.6,3.2078]
[1743654909365,1.5072,1831.7,1831.6,3.2078]
[1743654910064,2.38077,1831.7,1831.6,3.2078]
[1743654910362,2.38077,1831.7,1831.6,4.6377]
[1743654911060,2.38077,1831.7,1831.6,3.2078]
[1743654911260,4.44072919,1831.8,1831.6,3.2078]
[1743654911460,4.44072919,1831.8,1831.7,1.4346]
[1743654912366,4.44075919,1831.8,1831.6,3.2078]
[1743654912569,1.3881,1831.7,1831.6,3.2078]
[1743654912868,1.3881,1831.7,1831.6,4.6424]
[1743654913465,2.26167,1831.7,1831.6,4.6424]
[1743654913858,2.26167,1831.7,1831.6,3.2078]
[1743654914564,2.94647,1831.7,1831.6,3.2078]
[1743654915360,4.44074919,1831.8,1831.6,3.2078]
[1743654915564,0.00819919,1831.8,1831.6,4.0814]
[1743654915764,0.00819919,1831.8,1831.7,2.35167]
[1743654915964,3.2078,1832.6,1831.7,1.4781]
[1743654915965,0.87336,1832.2,1831.7,1.4781]
[1743654916159,0.87336,1832.2,1832.0,3.2078]
[1743654916358,2.28656,1832.2,1832.1,1.4781]
[1743654917165,0.87338,1832.1,1832.0,3.2078]
[1743654917365,2.38468,1832.1,1832.0,3.2078]
[1743654918262,1.5113,1832.1,1832.0,3.2078]
[1743654918566,5.1184,1832.3,1832.0,4.08123]
[1743654918767,5.1184,1832.3,1832.1,2.30655]
[1743654918768,5.7564,1832.3,1832.1,2.30655]
[1743654919067,6.6297,1832.3,1832.1,1.4332]
[1743654919267,6.6297,1832.3,1832.2,1.4332]
[1743654920866,3.2078,1832.8,1832.2,4.641]
[1743654921063,6.5405,1832.7,1832.2,5.5143]
[1743654921260,2.37229,1832.6,1832.4,3.2078]
[1743654921465,1.4991,1832.5,1832.4,3.2078]
[1743654921766,1.4991,1832.5,1832.4,4.6084]
[1743654922167,0.87319,1832.6,1832.4,4.6084]
[1743654922368,4.43419,1832.6,1832.5,1.4006]
[1743654922769,5.93329,1832.6,1832.5,1.4006]
[1743654922965,5.93329,1832.6,1832.4,3.2078]
[1743654922966,5.0601,1832.6,1832.2,3.2078]
[1743654923165,0.87329,1832.3,1832.2,3.2078]
[1743654923565,4.43929,1832.3,1832.2,3.2078]
[1743654925376,0.87338,1832.1,1832.0,4.5781]
[1743654925678,2.887,1832.2,1832.0,4.5781]
[1743654925862,3.76035,1832.2,1832.0,4.5781]
[1743654926065,3.76035,1832.2,1832.1,1.5118]
[1743654930778,0.87338,1832.1,1832.0,3.2078]
[1743654930977,2.24428,1832.1,1832.0,3.2078]
[1743654931274,1.3709,1832.1,1831.8,3.2078]
[1743654931481,0.87347,1831.9,1831.8,3.2078]
[1743654931874,0.87347,1831.9,1831.5,3.21599919]
[1743654931875,1.3709,1831.9,1831.5,3.21599919]
[1743654932075,0.87362,1831.6,1831.5,3.21599919]
[1743654932275,4.43462,1831.6,1831.5,3.21599919]
[1743654932475,3.561,1831.6,1831.5,3.21599919]
[1743654933286,3.561,1831.6,1831.5,5.46856919]
[1743654934985,3.561,1831.6,1831.5,4.59489919]
[1743654935285,5.89144,1831.8,1831.5,5.46856919]
[1743654935483,5.89144,1831.8,1831.6,2.212]
[1743654935684,5.89144,1831.8,1831.7,1.4781]
[1743654936498,5.0179,1831.8,1831.5,3.21599919]
[1743654936785,5.0179,1831.8,1831.5,4.69409919]
[1743654936991,5.89146,1831.8,1831.6,2.212]
[1743654937193,5.89146,1831.8,1831.7,1.4781]
[1743654938788,5.89146,1831.8,1831.5,3.21599919]
[1743654938789,0.87361,1831.7,1831.5,3.21599919]
[1743654938994,0.87362,1831.6,1831.5,4.58739919]
[1743654943398,0.87362,1831.6,1831.5,3.21599919]
[1743654943990,1.4763,1831.7,1831.5,3.21599919]
[1743654944186,1.4589,1831.8,1831.6,0.87361]
[1743654944393,3.558,1831.7,1831.6,2.34961]
[1743654944792,3.558,1831.7,1831.6,1.476]